[Event "*** SCC Grand Prix: Titled Tuesday Blitz"]
[Site "Chess.com"]
[Date "2020.07.07"]
[Round "8"]
[White "Semen_Khanin"]
[Black "binbin239"]
[Result "1-0"]
[WhiteElo "2718"]
[BlackElo "2530"]
[TimeControl "180+1"]
[EndTime "11:35:35 PDT"]
[Termination "Semen_Khanin won by checkmate"]

1. e4 {[%clk 0:03:00.9]} 1... c5 {[%clk 0:02:59.1]} 2. Nf3 {[%clk 0:03:00.5]}
2... Nc6 {[%clk 0:02:59]} 3. d4 {[%clk 0:03:01.1]} 3... cxd4 {[%clk 0:02:58.6]}
4. Nxd4 {[%clk 0:03:01.8]} 4... g6 {[%clk 0:02:58.8]} 5. Nc3 {[%clk 0:02:59.7]}
5... Bg7 {[%clk 0:02:58.8]} 6. Be3 {[%clk 0:03:00.3]} 6... Nf6 {[%clk
0:02:58.6]} 7. Bc4 {[%clk 0:03:00.9]} 7... Qa5 {[%clk 0:02:58.4]} 8. O-O {[%clk
0:03:00]} 8... d6 {[%clk 0:02:57.5]} 9. h3 {[%clk 0:02:56.9]} 9... O-O {[%clk
0:02:57.3]} 10. Bb3 {[%clk 0:02:56.2]} 10... Bd7 {[%clk 0:02:57.3]} 11. Qd3
{[%clk 0:02:56.2]} 11... Ne5 {[%clk 0:02:55.9]} 12. Qe2 {[%clk 0:02:55.7]} 12...
Rfc8 {[%clk 0:02:52]} 13. f4 {[%clk 0:02:55.9]} 13... Nc6 {[%clk 0:02:51.9]} 14.
Rad1 {[%clk 0:02:55.7]} 14... Nh5 {[%clk 0:02:40.6]} 15. Qf2 {[%clk 0:02:33.3]}
15... Be8 {[%clk 0:02:22.2]} 16. Nde2 {[%clk 0:02:24.4]} 16... Nf6 {[%clk
0:02:14.6]} 17. g4 {[%clk 0:02:18.4]} 17... b5 {[%clk 0:02:09.4]} 18. Ng3 {[%clk
0:02:16.7]} 18... b4 {[%clk 0:02:07.6]} 19. Nce2 {[%clk 0:02:16.8]} 19... Qb5
{[%clk 0:02:01.3]} 20. g5 {[%clk 0:02:12.5]} 20... Nd7 {[%clk 0:02:00]} 21. Nd4
{[%clk 0:02:09.3]} 21... Nxd4 {[%clk 0:01:59.2]} 22. Bxd4 {[%clk 0:02:09.6]}
22... e5 {[%clk 0:01:59.2]} 23. fxe5 {[%clk 0:02:00.8]} 23... Nxe5 {[%clk
0:01:59.1]} 24. Ne2 {[%clk 0:01:22.6]} 24... Nc4 {[%clk 0:01:51.9]} 25. h4
{[%clk 0:01:14.5]} 25... Ne5 {[%clk 0:01:40.1]} 26. Nf4 {[%clk 0:00:57.6]} 26...
a5 {[%clk 0:01:35.2]} 27. Nd5 {[%clk 0:00:54.5]} 27... Kh8 {[%clk 0:01:25.7]}
28. Nf6 {[%clk 0:00:52.5]} 28... a4 {[%clk 0:01:21.6]} 29. Bd5 {[%clk
0:00:52.5]} 29... Bc6 {[%clk 0:01:18.1]} 30. Bxf7 {[%clk 0:00:40.5]} 30... Nxf7
{[%clk 0:01:11.9]} 31. Nxh7 {[%clk 0:00:33.1]} 31... Ne5 {[%clk 0:01:02.4]} 32.
Nf6 {[%clk 0:00:33.1]} 32... Rf8 {[%clk 0:00:56.3]} 33. h5 {[%clk 0:00:30.4]}
33... Ng4 {[%clk 0:00:54.6]} 34. Qh4 {[%clk 0:00:28.3]} 34... Bxf6 {[%clk
0:00:33.9]} 35. hxg6+ {[%clk 0:00:26.7]} 35... Kg8 {[%clk 0:00:32.8]} 36. Qh7#
{[%clk 0:00:26.7]} 1-0

[Event "*** SCC Grand Prix: Titled Tuesday Blitz"]
[Site "Chess.com"]
[Date "2020.07.07"]
[Round "8"]
[White "EnergeticHay"]
[Black "Margarita2907"]
[Result "1/2-1/2"]
[WhiteElo "2243"]
[BlackElo "2100"]
[TimeControl "180+1"]
[EndTime "11:35:37 PDT"]
[Termination "Game drawn by repetition"]

1. e4 {[%clk 0:03:00.9]} 1... c5 {[%clk 0:02:58.5]} 2. Nf3 {[%clk 0:03:00.7]}
2... d6 {[%clk 0:02:58.9]} 3. d4 {[%clk 0:03:01.1]} 3... cxd4 {[%clk 0:02:59.5]}
4. Nxd4 {[%clk 0:03:02]} 4... Nf6 {[%clk 0:02:59.5]} 5. Nc3 {[%clk 0:03:02.4]}
5... a6 {[%clk 0:02:59.7]} 6. h3 {[%clk 0:03:02.9]} 6... e5 {[%clk 0:02:58.7]}
7. Nde2 {[%clk 0:03:03]} 7... h5 {[%clk 0:02:59.2]} 8. g3 {[%clk 0:03:03.3]}
8... b5 {[%clk 0:02:57.8]} 9. Bg2 {[%clk 0:03:02.2]} 9... Bb7 {[%clk 0:02:57.9]}
10. Nd5 {[%clk 0:03:02.5]} 10... Nxd5 {[%clk 0:02:53.7]} 11. exd5 {[%clk
0:03:03.4]} 11... Nd7 {[%clk 0:02:53.7]} 12. O-O {[%clk 0:03:00.5]} 12... Be7
{[%clk 0:02:53.7]} 13. a4 {[%clk 0:02:56.1]} 13... h4 {[%clk 0:02:49.8]} 14. g4
{[%clk 0:02:54]} 14... Bg5 {[%clk 0:02:48.9]} 15. axb5 {[%clk 0:02:53.1]} 15...
axb5 {[%clk 0:02:48.1]} 16. Rxa8 {[%clk 0:02:52.4]} 16... Bxa8 {[%clk
0:02:47.5]} 17. Qd3 {[%clk 0:02:52.1]} 17... Bxc1 {[%clk 0:02:43.6]} 18. Rxc1
{[%clk 0:02:52.7]} 18... Qb6 {[%clk 0:02:41.9]} 19. Nc3 {[%clk 0:02:50.8]} 19...
b4 {[%clk 0:02:39.3]} 20. Ne4 {[%clk 0:02:51]} 20... Nc5 {[%clk 0:02:35.4]} 21.
Nxc5 {[%clk 0:02:50.9]} 21... Qxc5 {[%clk 0:02:35.3]} 22. c4 {[%clk 0:02:51.3]}
22... O-O {[%clk 0:02:28.4]} 23. b3 {[%clk 0:02:49.6]} 23... Bb7 {[%clk
0:02:26.5]} 24. Qf5 {[%clk 0:02:48.5]} 24... Qd4 {[%clk 0:02:22.6]} 25. Qd7
{[%clk 0:02:42.1]} 25... Bc8 {[%clk 0:02:00.9]} 26. Qxd6 {[%clk 0:02:39.8]}
26... Qb2 {[%clk 0:01:53.8]} 27. Re1 {[%clk 0:02:39.4]} 27... Qxb3 {[%clk
0:01:53.3]} 28. c5 {[%clk 0:02:38.1]} 28... Qc3 {[%clk 0:01:44.3]} 29. Rb1
{[%clk 0:02:32.9]} 29... b3 {[%clk 0:01:41.6]} 30. Qb6 {[%clk 0:02:31.2]} 30...
f5 {[%clk 0:00:53.7]} 31. gxf5 {[%clk 0:02:28.3]} 31... Bxf5 {[%clk 0:00:52.4]}
32. Rxb3 {[%clk 0:02:27.7]} 32... Qc1+ {[%clk 0:00:50.2]} 33. Kh2 {[%clk
0:02:28.2]} 33... Qf4+ {[%clk 0:00:49.5]} 34. Kg1 {[%clk 0:02:27.9]} 34... Qc1+
{[%clk 0:00:25.8]} 35. Bf1 {[%clk 0:02:24.1]} 35... Bc2 {[%clk 0:00:22]} 36.
Qe6+ {[%clk 0:02:18.4]} 36... Kh8 {[%clk 0:00:20.1]} 37. Re3 {[%clk 0:02:18.7]}
37... Rf6 {[%clk 0:00:16.9]} 38. Qe8+ {[%clk 0:02:16.1]} 38... Kh7 {[%clk
0:00:16.8]} 39. Qh5+ {[%clk 0:02:16.8]} 39... Rh6 {[%clk 0:00:15.7]} 40. Qe2
{[%clk 0:01:53.6]} 40... Rg6+ {[%clk 0:00:14.5]} 41. Kh2 {[%clk 0:01:54.1]}
41... Bd1 {[%clk 0:00:12.3]} 42. Qc4 {[%clk 0:01:47.8]} 42... Qd2 {[%clk
0:00:10.3]} 43. Be2 {[%clk 0:01:46.4]} 43... Bxe2 {[%clk 0:00:08]} 44. Rxe2
{[%clk 0:01:46.8]} 44... Qd1 {[%clk 0:00:07.7]} 45. Qxh4+ {[%clk 0:01:42.7]}
45... Kg8 {[%clk 0:00:07.7]} 46. Qd8+ {[%clk 0:01:41.4]} 46... Kh7 {[%clk
0:00:07.5]} 47. Qh4+ {[%clk 0:01:41.6]} 47... Kg8 {[%clk 0:00:07.5]} 48. Qd8+
{[%clk 0:01:23.2]} 48... Kh7 {[%clk 0:00:07.2]} 49. Qh4+ {[%clk 0:01:21]}
1/2-1/2

[Event "*** SCC Grand Prix: Titled Tuesday Blitz"]
[Site "Chess.com"]
[Date "2020.07.07"]
[Round "8"]
[White "PawnEatingZombie"]
[Black "Irishchessman16"]
[Result "0-1"]
[WhiteElo "2191"]
[BlackElo "2409"]
[TimeControl "180+1"]
[EndTime "11:35:38 PDT"]
[Termination "Irishchessman16 won by resignation"]

1. d4 {[%clk 0:03:00.9]} 1... f5 {[%clk 0:02:54.8]} 2. Nc3 {[%clk 0:02:59.7]}
2... d5 {[%clk 0:02:54]} 3. Bf4 {[%clk 0:02:58.6]} 3... Nf6 {[%clk 0:02:50.9]}
4. Nb5 {[%clk 0:02:48.9]} 4... Na6 {[%clk 0:02:50.2]} 5. c4 {[%clk 0:02:44.5]}
5... c6 {[%clk 0:02:47]} 6. Nc3 {[%clk 0:02:43.1]} 6... e6 {[%clk 0:02:45.6]} 7.
e3 {[%clk 0:02:43.1]} 7... Be7 {[%clk 0:02:45.7]} 8. Nf3 {[%clk 0:02:41.4]} 8...
O-O {[%clk 0:02:46.6]} 9. Bd3 {[%clk 0:02:40.7]} 9... Nb4 {[%clk 0:02:46]} 10.
Be2 {[%clk 0:02:38.1]} 10... Ne4 {[%clk 0:02:42.1]} 11. O-O {[%clk 0:02:35.5]}
11... a5 {[%clk 0:02:36.3]} 12. a3 {[%clk 0:02:31.7]} 12... Na6 {[%clk
0:02:35.1]} 13. Rc1 {[%clk 0:02:29.6]} 13... Nc7 {[%clk 0:02:32.8]} 14. h3
{[%clk 0:02:22.7]} 14... Ne8 {[%clk 0:02:32.5]} 15. Ne5 {[%clk 0:02:20.6]} 15...
g5 {[%clk 0:02:32]} 16. Bh2 {[%clk 0:02:18.8]} 16... N8d6 {[%clk 0:02:30]} 17.
f3 {[%clk 0:02:11.9]} 17... Nxc3 {[%clk 0:02:28.9]} 18. Rxc3 {[%clk 0:02:05.3]}
18... f4 {[%clk 0:02:29]} 19. Qd2 {[%clk 0:01:19.5]} 19... fxe3 {[%clk
0:02:10.8]} 20. Qxe3 {[%clk 0:01:17.4]} 20... Nf5 {[%clk 0:02:10.5]} 21. Qd2
{[%clk 0:01:15.2]} 21... c5 {[%clk 0:02:09.1]} 22. dxc5 {[%clk 0:01:01.2]} 22...
Bxc5+ {[%clk 0:02:07.4]} 23. Kh1 {[%clk 0:01:01.7]} 23... d4 {[%clk 0:01:47.9]}
24. Rcc1 {[%clk 0:01:00.7]} 24... Ne3 {[%clk 0:01:30.8]} 25. Rfe1 {[%clk
0:00:59.6]} 25... a4 {[%clk 0:01:23.4]} 26. Bd3 {[%clk 0:00:58.7]} 26... Qf6
{[%clk 0:01:15.2]} 27. Ng4 {[%clk 0:00:53.2]} 27... Qe7 {[%clk 0:01:13.2]} 28.
Be5 {[%clk 0:00:42]} 28... Rf5 {[%clk 0:01:12.6]} 29. Nh6+ {[%clk 0:00:41.2]}
29... Kf8 {[%clk 0:01:12.8]} 30. Nxf5 {[%clk 0:00:40.9]} 30... exf5 {[%clk
0:01:12.2]} 31. Rxe3 {[%clk 0:00:34.8]} 31... dxe3 {[%clk 0:01:09.2]} 32. Qc3
{[%clk 0:00:35]} 32... Bd7 {[%clk 0:01:06.1]} 33. f4 {[%clk 0:00:32.7]} 33... g4
{[%clk 0:00:54.4]} 34. Kh2 {[%clk 0:00:29.9]} 34... Kf7 {[%clk 0:00:48.8]} 35.
Re1 {[%clk 0:00:26.9]} 35... gxh3 {[%clk 0:00:44.7]} 36. gxh3 {[%clk 0:00:25.7]}
36... Qh4 {[%clk 0:00:42.8]} 37. Qc2 {[%clk 0:00:20.8]} 37... Qxe1 {[%clk
0:00:38.8]} 38. Qg2 {[%clk 0:00:19.3]} 38... Qf2 {[%clk 0:00:37.6]} 0-1

[Event "*** SCC Grand Prix: Titled Tuesday Blitz"]
[Site "Chess.com"]
[Date "2020.07.07"]
[Round "8"]
[White "Karacsonyi_Gellert"]
[Black "VALPARAISO37"]
[Result "0-1"]
[WhiteElo "2456"]
[BlackElo "2316"]
[TimeControl "180+1"]
[EndTime "11:35:41 PDT"]
[Termination "VALPARAISO37 won by resignation"]

1. e4 {[%clk 0:03:00.9]} 1... e5 {[%clk 0:02:59.7]} 2. Nf3 {[%clk 0:03:00.5]}
2... Nc6 {[%clk 0:02:56.5]} 3. Bb5 {[%clk 0:02:59]} 3... a6 {[%clk 0:02:56.6]}
4. Bxc6 {[%clk 0:02:59.2]} 4... dxc6 {[%clk 0:02:56.3]} 5. O-O {[%clk
0:03:00.1]} 5... Bd6 {[%clk 0:02:56.2]} 6. d4 {[%clk 0:02:59.6]} 6... exd4
{[%clk 0:02:56.3]} 7. Qxd4 {[%clk 0:03:00.5]} 7... f6 {[%clk 0:02:56.6]} 8. Be3
{[%clk 0:03:01]} 8... Ne7 {[%clk 0:02:55.8]} 9. Nbd2 {[%clk 0:03:01.3]} 9... Be6
{[%clk 0:02:55.6]} 10. Rfd1 {[%clk 0:03:01.6]} 10... Ng6 {[%clk 0:02:54.6]} 11.
Nc4 {[%clk 0:03:00.6]} 11... Bxc4 {[%clk 0:02:54.7]} 12. Qxc4 {[%clk 0:03:01.5]}
12... Qe7 {[%clk 0:02:55]} 13. b4 {[%clk 0:03:01.7]} 13... Qf7 {[%clk
0:02:44.3]} 14. Qxf7+ {[%clk 0:03:01.1]} 14... Kxf7 {[%clk 0:02:44.1]} 15. Bc5
{[%clk 0:03:02]} 15... Rhd8 {[%clk 0:02:42.1]} 16. Bxd6 {[%clk 0:02:56.9]} 16...
Rxd6 {[%clk 0:02:39.4]} 17. Rxd6 {[%clk 0:02:56.7]} 17... cxd6 {[%clk 0:02:39]}
18. Nd2 {[%clk 0:02:56.7]} 18... Rd8 {[%clk 0:02:34.3]} 19. Rd1 {[%clk
0:02:50.8]} 19... Ke7 {[%clk 0:02:32.4]} 20. c4 {[%clk 0:02:38.2]} 20... d5
{[%clk 0:02:32.7]} 21. exd5 {[%clk 0:02:28.2]} 21... cxd5 {[%clk 0:02:32.8]} 22.
c5 {[%clk 0:02:28.6]} 22... Ne5 {[%clk 0:02:20.1]} 23. Nb3 {[%clk 0:02:25.5]}
23... Nc6 {[%clk 0:02:15.6]} 24. a3 {[%clk 0:02:23.4]} 24... d4 {[%clk 0:02:06]}
25. f3 {[%clk 0:02:23]} 25... Ke6 {[%clk 0:02:05.8]} 26. Kf2 {[%clk 0:02:23.3]}
26... Kd5 {[%clk 0:02:05.9]} 27. h4 {[%clk 0:02:15.5]} 27... Kc4 {[%clk
0:02:04.3]} 28. Nd2+ {[%clk 0:02:13.4]} 28... Kc3 {[%clk 0:02:03.5]} 29. Ne4+
{[%clk 0:02:12.4]} 29... Kb2 {[%clk 0:02:03.1]} 30. Nd6 {[%clk 0:01:26.3]} 30...
b5 {[%clk 0:02:01.4]} 31. Rd3 {[%clk 0:01:21.2]} 31... Kc2 {[%clk 0:01:57.8]}
32. Ke2 {[%clk 0:01:15.1]} 32... Rd7 {[%clk 0:01:55.8]} 33. Rd2+ {[%clk
0:01:09.6]} 33... Kc3 {[%clk 0:01:53.6]} 34. Ne4+ {[%clk 0:00:32.7]} 34... Kc4
{[%clk 0:01:53]} 35. Nd6+ {[%clk 0:00:27.5]} 35... Kd5 {[%clk 0:01:46.5]} 36.
Kd3 {[%clk 0:00:22.2]} 36... Re7 {[%clk 0:01:44.1]} 37. Nf5 {[%clk 0:00:21.1]}
37... Re5 {[%clk 0:01:32.5]} 38. g4 {[%clk 0:00:20.6]} 38... g6 {[%clk
0:01:32.3]} 39. Nd6 {[%clk 0:00:20.4]} 39... Re3+ {[%clk 0:01:31.5]} 40. Kc2
{[%clk 0:00:20.6]} 40... Rxa3 {[%clk 0:01:26]} 41. Ne8 {[%clk 0:00:20.6]} 41...
Nxb4+ {[%clk 0:01:22.7]} 42. Kb1 {[%clk 0:00:18.1]} 42... Rxf3 {[%clk
0:01:21.5]} 43. Nc7+ {[%clk 0:00:13.9]} 43... Kxc5 {[%clk 0:01:20.1]} 44. Ne6+
{[%clk 0:00:14]} 44... Kc4 {[%clk 0:01:16.2]} 45. Nxd4 {[%clk 0:00:11.5]} 45...
Rf1+ {[%clk 0:01:13.6]} 46. Kb2 {[%clk 0:00:10.8]} 46... Nd3+ {[%clk 0:01:09.3]}
0-1

[Event "*** SCC Grand Prix: Titled Tuesday Blitz"]
[Site "Chess.com"]
[Date "2020.07.07"]
[Round "8"]
[White "Gandrade2"]
[Black "JoliyRoger"]
[Result "0-1"]
[WhiteElo "2115"]
[BlackElo "2256"]
[TimeControl "180+1"]
[EndTime "11:35:41 PDT"]
[Termination "JoliyRoger won by resignation"]

1. d4 {[%clk 0:03:00.9]} 1... Nf6 {[%clk 0:02:59.4]} 2. c4 {[%clk 0:03:00.9]}
2... e6 {[%clk 0:02:59.7]} 3. Nc3 {[%clk 0:03:00.9]} 3... Bb4 {[%clk 0:03:00.2]}
4. f3 {[%clk 0:03:01.3]} 4... c5 {[%clk 0:03:00.4]} 5. d5 {[%clk 0:03:00.8]}
5... d6 {[%clk 0:02:55.6]} 6. e4 {[%clk 0:02:59.4]} 6... e5 {[%clk 0:02:43.2]}
7. Bd3 {[%clk 0:02:56.8]} 7... Nbd7 {[%clk 0:02:39]} 8. Ne2 {[%clk 0:02:56.6]}
8... Nf8 {[%clk 0:02:38.9]} 9. O-O {[%clk 0:02:55.6]} 9... Ng6 {[%clk
0:02:24.4]} 10. Be3 {[%clk 0:02:29.7]} 10... Bd7 {[%clk 0:02:21.3]} 11. Bc2
{[%clk 0:02:29.2]} 11... a6 {[%clk 0:02:18.4]} 12. a4 {[%clk 0:02:11.7]} 12...
Rb8 {[%clk 0:02:14.7]} 13. Bd3 {[%clk 0:02:04.3]} 13... Bxc3 {[%clk 0:02:09.2]}
14. Nxc3 {[%clk 0:02:02.4]} 14... Nf4 {[%clk 0:02:00.9]} 15. Qd2 {[%clk
0:01:54.2]} 15... g5 {[%clk 0:01:50.7]} 16. g3 {[%clk 0:01:51.2]} 16... Nxd3
{[%clk 0:01:50.9]} 17. Qxd3 {[%clk 0:01:50.4]} 17... h6 {[%clk 0:01:46.5]} 18.
f4 {[%clk 0:01:24.1]} 18... gxf4 {[%clk 0:01:19.3]} 19. gxf4 {[%clk 0:01:21.9]}
19... Ng4 {[%clk 0:01:19.7]} 20. f5 {[%clk 0:01:17.2]} 20... Qh4 {[%clk
0:01:08.9]} 21. Qe2 {[%clk 0:01:10.6]} 21... Rg8 {[%clk 0:01:01.6]} 22. Kh1
{[%clk 0:01:10.9]} 22... Nxe3 {[%clk 0:00:59.7]} 23. Qxe3 {[%clk 0:01:09.3]}
23... Rg5 {[%clk 0:00:59.3]} 24. Rg1 {[%clk 0:01:05.1]} 24... Ke7 {[%clk
0:00:45.2]} 25. Rg3 {[%clk 0:00:51.1]} 25... f6 {[%clk 0:00:39.5]} 26. Rag1
{[%clk 0:00:48.6]} 26... Rbg8 {[%clk 0:00:38.6]} 27. Ne2 {[%clk 0:00:44.2]}
27... b5 {[%clk 0:00:33.4]} 28. axb5 {[%clk 0:00:41.5]} 28... axb5 {[%clk
0:00:33.5]} 29. Rxg5 {[%clk 0:00:39.7]} 29... Rxg5 {[%clk 0:00:26.4]} 30. Rxg5
{[%clk 0:00:39.1]} 30... hxg5 {[%clk 0:00:26.9]} 31. cxb5 {[%clk 0:00:31.4]}
31... Qe1+ {[%clk 0:00:20.4]} 32. Kg2 {[%clk 0:00:31.4]} 32... Bxb5 {[%clk
0:00:20.7]} 33. Nc3 {[%clk 0:00:30.9]} 33... Qxe3 {[%clk 0:00:19.4]} 0-1

[Event "*** SCC Grand Prix: Titled Tuesday Blitz"]
[Site "Chess.com"]
[Date "2020.07.07"]
[Round "8"]
[White "bugsbunny444"]
[Black "ajdemipopushi"]
[Result "0-1"]
[WhiteElo "2477"]
[BlackElo "2372"]
[TimeControl "180+1"]
[EndTime "11:35:45 PDT"]
[Termination "ajdemipopushi won on time"]

1. Nf3 {[%clk 0:03:00.9]} 1... c5 {[%clk 0:02:59.5]} 2. c4 {[%clk 0:03:00.7]}
2... g6 {[%clk 0:02:59.2]} 3. d4 {[%clk 0:02:59.7]} 3... cxd4 {[%clk 0:02:54.8]}
4. Nxd4 {[%clk 0:03:00.6]} 4... Bg7 {[%clk 0:02:54.7]} 5. e4 {[%clk 0:03:01.1]}
5... Nc6 {[%clk 0:02:55]} 6. Be3 {[%clk 0:03:01.5]} 6... Nf6 {[%clk 0:02:54.5]}
7. Nc3 {[%clk 0:03:00.6]} 7... Nxd4 {[%clk 0:02:54.7]} 8. Bxd4 {[%clk 0:02:59]}
8... Qa5 {[%clk 0:02:55.3]} 9. f3 {[%clk 0:02:54.8]} 9... d6 {[%clk 0:02:55.5]}
10. Be2 {[%clk 0:02:51.7]} 10... Be6 {[%clk 0:02:55.5]} 11. O-O {[%clk
0:02:48.5]} 11... O-O {[%clk 0:02:55.3]} 12. Qa4 {[%clk 0:02:23.1]} 12... Qxa4
{[%clk 0:02:40.1]} 13. Nxa4 {[%clk 0:02:22.9]} 13... Rfc8 {[%clk 0:02:36.3]} 14.
Rac1 {[%clk 0:01:47.7]} 14... Nd7 {[%clk 0:02:33]} 15. Bxg7 {[%clk 0:01:06]}
15... Kxg7 {[%clk 0:02:32.8]} 16. f4 {[%clk 0:00:54.7]} 16... f6 {[%clk
0:02:27.8]} 17. b3 {[%clk 0:00:46.8]} 17... a6 {[%clk 0:02:20.1]} 18. Nc3 {[%clk
0:00:41]} 18... Rab8 {[%clk 0:01:54.3]} 19. Rfe1 {[%clk 0:00:19.3]} 19... Rc7
{[%clk 0:01:12.8]} 20. Bf1 {[%clk 0:00:15.7]} 20... Rbc8 {[%clk 0:01:10.2]} 21.
Nd5 {[%clk 0:00:10.1]} 21... Bxd5 {[%clk 0:01:03.7]} 22. exd5 {[%clk 0:00:10.4]}
22... Kf7 {[%clk 0:01:02]} 23. Rc3 {[%clk 0:00:07.6]} 23... f5 {[%clk
0:00:53.7]} 24. Rce3 {[%clk 0:00:07.1]} 24... Nf6 {[%clk 0:00:52.5]} 25. Bd3
{[%clk 0:00:04]} 25... Rb8 {[%clk 0:00:47.7]} 26. a4 {[%clk 0:00:02.2]} 26...
Re8 {[%clk 0:00:32.5]} 27. h3 {[%clk 0:00:01.8]} 27... h5 {[%clk 0:00:31]} 0-1

[Event "*** SCC Grand Prix: Titled Tuesday Blitz"]
[Site "Chess.com"]
[Date "2020.07.07"]
[Round "8"]
[White "SharapovEvgeny"]
[Black "csati17"]
[Result "1/2-1/2"]
[WhiteElo "2443"]
[BlackElo "2647"]
[TimeControl "180+1"]
[EndTime "11:35:48 PDT"]
[Termination "Game drawn by agreement"]

1. e4 {[%clk 0:02:59.6]} 1... e6 {[%clk 0:03:00.3]} 2. d4 {[%clk 0:02:59.1]}
2... d5 {[%clk 0:03:00.9]} 3. exd5 {[%clk 0:02:59.1]} 3... exd5 {[%clk
0:03:01.8]} 4. Nf3 {[%clk 0:02:59]} 4... Nc6 {[%clk 0:03:00.8]} 5. Bd3 {[%clk
0:02:58.1]} 5... Bd6 {[%clk 0:03:00.9]} 6. O-O {[%clk 0:02:57.5]} 6... Nge7
{[%clk 0:03:01.2]} 7. c3 {[%clk 0:02:56.8]} 7... O-O {[%clk 0:03:00]} 8. h3
{[%clk 0:02:56.4]} 8... Bf5 {[%clk 0:02:58.1]} 9. Re1 {[%clk 0:02:54.1]} 9... f6
{[%clk 0:02:55.5]} 10. Qc2 {[%clk 0:02:48.1]} 10... Qd7 {[%clk 0:02:53.8]} 11.
Nbd2 {[%clk 0:02:46.1]} 11... Rae8 {[%clk 0:02:51.9]} 12. Nf1 {[%clk 0:02:44.9]}
12... Bxd3 {[%clk 0:02:45.3]} 13. Qxd3 {[%clk 0:02:44.5]} 13... Qf5 {[%clk
0:02:46.2]} 14. Qxf5 {[%clk 0:02:43.6]} 14... Nxf5 {[%clk 0:02:47.1]} 15. Ne3
{[%clk 0:02:41.4]} 15... Nxe3 {[%clk 0:02:46.1]} 16. Rxe3 {[%clk 0:02:40.8]}
16... Kf7 {[%clk 0:02:43.1]} 17. Bd2 {[%clk 0:02:40.2]} 17... Rxe3 {[%clk
0:02:37.2]} 18. Bxe3 {[%clk 0:02:39.6]} 18... Re8 {[%clk 0:02:32]} 19. Re1
{[%clk 0:02:38.4]} 19... b5 {[%clk 0:02:18.9]} 20. Kf1 {[%clk 0:02:35.7]} 20...
a5 {[%clk 0:02:18.6]} 21. Bd2 {[%clk 0:02:31.3]} 21... Rxe1+ {[%clk 0:02:11.6]}
22. Kxe1 {[%clk 0:02:31.4]} 22... a4 {[%clk 0:02:12.5]} 23. Ke2 {[%clk
0:02:30.5]} 23... Ke6 {[%clk 0:02:10.8]} 24. Kd3 {[%clk 0:02:30.1]} 24... Na5
{[%clk 0:02:02.3]} 25. Bc1 {[%clk 0:02:27.9]} 25... c5 {[%clk 0:01:25.9]} 26.
dxc5 {[%clk 0:02:26.5]} 26... Bxc5 {[%clk 0:01:26.8]} 27. Nd4+ {[%clk 0:02:20]}
27... Bxd4 {[%clk 0:01:25.1]} 28. Kxd4 {[%clk 0:02:20]} 28... Kd6 {[%clk
0:01:25.1]} 29. Bf4+ {[%clk 0:02:16.1]} 29... Kc6 {[%clk 0:01:24.8]} 30. g4
{[%clk 0:02:11.2]} 30... Nc4 {[%clk 0:01:22.7]} 31. b3 {[%clk 0:02:09.4]} 31...
Na5 {[%clk 0:01:10.7]} 32. bxa4 {[%clk 0:02:03.2]} 32... bxa4 {[%clk 0:01:11.6]}
33. h4 {[%clk 0:01:55.5]} 33... Nc4 {[%clk 0:01:05.1]} 34. h5 {[%clk 0:01:54.8]}
34... g6 {[%clk 0:01:03.9]} 35. hxg6 {[%clk 0:01:53.7]} 35... hxg6 {[%clk
0:01:04.8]} 36. f3 {[%clk 0:01:44.4]} 36... Na3 {[%clk 0:00:41.3]} 37. Kd3
{[%clk 0:01:40.2]} 37... Nc4 {[%clk 0:00:38.5]} 38. Kd4 {[%clk 0:01:39.6]} 38...
Nb6 {[%clk 0:00:24.6]} 39. g5 {[%clk 0:01:31.8]} 39... fxg5 {[%clk 0:00:15.5]}
40. Bxg5 {[%clk 0:01:31.4]} 40... Nd7 {[%clk 0:00:15.5]} 41. Be7 {[%clk
0:01:28]} 41... Nb6 {[%clk 0:00:14.2]} 42. Ke5 {[%clk 0:01:25.8]} 42... Nc4+
{[%clk 0:00:13.2]} 43. Kf6 {[%clk 0:01:24.8]} 43... Nd2 {[%clk 0:00:13.6]} 44.
f4 {[%clk 0:01:17.8]} 44... Ne4+ {[%clk 0:00:12.9]} 45. Kxg6 {[%clk 0:01:17.5]}
45... Nxc3 {[%clk 0:00:13.2]} 46. f5 {[%clk 0:01:13.6]} 46... Ne4 {[%clk
0:00:08.9]} 47. f6 {[%clk 0:01:13.5]} 47... Nxf6 {[%clk 0:00:09.1]} 48. Kxf6
{[%clk 0:01:11.1]} 48... Kb7 {[%clk 0:00:08.1]} 49. Ke5 {[%clk 0:01:10.6]} 49...
Ka8 {[%clk 0:00:09]} 50. Kxd5 {[%clk 0:01:10.7]} 50... Kb8 {[%clk 0:00:09.9]}
1/2-1/2